bitfinex-derivatives/quotes_BTCF0:USTF0_20250528
["timestamp","ask_amount","ask_price","bid_price","bid_amount"]
[1748397034581,0.80893083,108900.0,108890.0,0.23015994]
[1748397035787,0.65494619,108900.0,108890.0,0.84160757]
[1748397035975,0.18904619,108900.0,108890.0,1.20240757]
[1748397037870,0.18904619,108900.0,108890.0,1.09454084]
[1748397039178,0.18904619,108900.0,108890.0,0.73374084]
[1748397039775,0.18904619,108900.0,108890.0,0.41374084]
[1748397042383,0.22630481,108900.0,108890.0,0.41374084]
[1748397043076,0.18904619,108900.0,108890.0,0.4545085]
[1748397045483,0.22633871,108900.0,108890.0,0.4545085]
[1748397045686,0.22633871,108900.0,108890.0,0.8767085]
[1748397046393,0.69500544,108900.0,108890.0,0.23015994]
[1748397046593,0.7749271,108900.0,108890.0,0.27096704]
[1748397046799,1.26650262,108900.0,108890.0,0.22268704]
[1748397046981,1.32362846,108900.0,108890.0,0.0537279]
[1748397047188,1.32362846,108900.0,108890.0,0.0129208]
[1748397047189,1.28061967,108900.0,108890.0,0.0129208]
[1748397047495,1.36660079,108900.0,108890.0,0.0199156]
[1748397047880,1.36660079,108900.0,108890.0,0.007]
[1748397047881,1.45843279,108900.0,108890.0,0.007]
[1748397048088,1.45843279,108900.0,108890.0,0.01978916]
[1748397048286,1.45843279,108900.0,108890.0,0.007]
[1748397048681,1.37245167,108900.0,108890.0,0.00712]
[1748397049088,1.89333167,108900.0,108890.0,0.00712]
[1748397049293,1.8933255,108900.0,108890.0,0.01990716]
[1748397050094,1.8933255,108900.0,108890.0,0.01990409]
[1748397050297,1.8933255,108900.0,108890.0,0.01990407]
[1748397050591,1.8933255,108900.0,108890.0,0.00712]
[1748397050796,1.8933255,108900.0,108890.0,0.01990352]
[1748397051492,1.97930662,108900.0,108890.0,0.00712]
[1748397052588,1.94199861,108900.0,108890.0,0.00712]
[1748397052794,1.9793068,108900.0,108890.0,0.00712]
[1748397053498,1.97930654,108900.0,108890.0,0.00712]
[1748397053886,1.89332542,108900.0,108890.0,0.00712]
[1748397054084,1.67759196,108900.0,108890.0,0.00712]
[1748397054282,1.89332542,108900.0,108890.0,0.00712]
[1748397054686,1.89332542,108900.0,108890.0,0.01712]
[1748397055895,1.97930654,108900.0,108890.0,0.01712]
[1748397057796,1.97929681,108900.0,108890.0,0.01712]
[1748397058301,1.55713681,108900.0,108890.0,0.01712]
[1748397058604,1.89335569,108900.0,108890.0,0.01712]
[1748397060506,1.80152369,108900.0,108890.0,0.01712]
[1748397063097,1.84443966,108900.0,108890.0,0.01712]
[1748397066303,1.84443863,108900.0,108890.0,0.01712]
[1748397066502,1.84444043,108900.0,108890.0,0.01712]
[1748397067205,1.62870697,108900.0,108890.0,0.01712]
[1748397067393,1.84444043,108900.0,108890.0,0.01712]
[1748397068693,1.06487023,108900.0,108890.0,0.200701]
[1748397069009,1.1585343,108900.0,108890.0,0.200701]
[1748397069300,1.1585343,108900.0,108890.0,0.295201]
[1748397069492,1.1278343,108900.0,108890.0,0.295201]
[1748397070705,1.01982821,108900.0,108890.0,0.295201]
[1748397071006,0.34339553,108900.0,108890.0,0.40306773]
[1748397071213,0.18904619,108900.0,108890.0,0.76387483]
[1748397071391,0.18904619,108900.0,108890.0,1.12467483]
[1748397071593,0.18904619,108900.0,108890.0,0.50387483]
[1748397071991,0.18904619,108900.0,108890.0,0.3960081]
[1748397072187,0.1845641,108900.0,108890.0,0.3960081]
[1748397074706,0.1845641,108900.0,108890.0,0.50387483]
[1748397075409,0.18904619,108900.0,108890.0,0.50387483]
[1748397077495,0.00548209,108900.0,108890.0,0.44387483]
[1748397077696,0.00548209,108900.0,108890.0,1.54009616]
[1748397077898,0.00151549,108910.0,108900.0,0.1835641]
[1748397078213,0.68939177,108930.0,108920.0,0.1835304]
[1748397078412,0.77939177,108930.0,108920.0,1.14641162]
[1748397078713,0.73351057,108930.0,108920.0,1.19021162]
[1748397078913,0.73351057,108930.0,108920.0,1.39675835]
[1748397078914,0.59158265,108930.0,108920.0,1.39675835]
[1748397079100,0.23078265,108930.0,108920.0,1.75755835]
[1748397080508,0.23278265,108930.0,108920.0,1.78564685]
[1748397080915,0.23378265,108930.0,108920.0,1.67778012]
[1748397081918,0.23378265,108930.0,108920.0,1.31778012]
[1748397082416,0.26538265,108930.0,108920.0,1.2770589]
[1748397083725,0.26538265,108930.0,108920.0,0.4940989]
[1748397083726,0.73404938,108930.0,108920.0,0.4940989]
[1748397084013,1.01464938,108930.0,108920.0,0.9163389]
[1748397084416,0.76464938,108930.0,108920.0,0.9163389]
[1748397084822,0.97464938,108930.0,108920.0,0.9163389]
[1748397085408,0.97464938,108930.0,108920.0,0.8892504]
[1748397086718,0.97464938,108930.0,108920.0,0.4671304]
[1748397086907,0.97464938,108930.0,108920.0,0.70568]
[1748397087512,0.97464938,108930.0,108920.0,0.8892104]
[1748397087914,0.97464938,108930.0,108920.0,0.70568]
[1748397088219,0.97464938,108930.0,108920.0,0.8892104]
[1748397088916,0.76464938,108930.0,108920.0,0.8892104]
[1748397089320,0.83464938,108930.0,108920.0,0.70568]
[1748397089523,0.76464938,108930.0,108920.0,0.70568]
[1748397089718,0.76464938,108930.0,108920.0,0.67438]
[1748397089924,0.76464938,108930.0,108920.0,0.8579104]
[1748397090316,0.76464938,108930.0,108920.0,0.67438]
[1748397090516,0.76464938,108930.0,108920.0,0.8579104]
[1748397092426,0.76464938,108930.0,108920.0,0.67438]
[1748397093518,0.76464938,108930.0,108920.0,0.7014685]
[1748397094610,0.76913147,108930.0,108920.0,0.7014685]
[1748397096717,0.76913147,108930.0,108920.0,0.5847685]
[1748397097127,0.86913147,108930.0,108920.0,0.5847685]
[1748397098325,0.86913147,108930.0,108920.0,0.7682989]
[1748397098923,0.86913147,108930.0,108920.0,0.5847685]
[1748397099123,0.76126474,108930.0,108920.0,0.7682989]
[1748397099320,0.86913147,108930.0,108920.0,0.7682989]
[1748397099632,0.76126474,108930.0,108920.0,0.81902012]
[1748397099832,0.76126474,108930.0,108920.0,0.85082012]
[1748397100021,0.76126474,108930.0,108920.0,0.7830104]
[1748397100419,0.76126474,108930.0,108920.0,0.82373162]
[1748397100620,0.29598265,108930.0,108920.0,1.25159835]
[1748397100821,0.26538265,108930.0,108920.0,1.61239835]
[1748397101223,0.23378265,108930.0,108920.0,1.61239835]
[1748397101720,0.003,108930.0,108920.0,1.88916674]
[1748397101922,0.00943545,108940.0,108930.0,0.1835136]
[1748397102125,0.19293215,108940.0,108930.0,1.35665077]
[1748397102319,0.19293215,108940.0,108930.0,1.44844677]
[1748397102521,0.19293215,108940.0,108930.0,1.34058004]
[1748397102725,0.19293215,108940.0,108930.0,1.34966183]
[1748397103031,0.01343545,108940.0,108930.0,1.35066183]
[1748397103225,0.01543545,108940.0,108930.0,1.42642682]
[1748397103427,0.01543545,108940.0,108930.0,1.53429355]
[1748397103826,0.00613752,108940.0,108930.0,1.53429355]
[1748397104132,0.00613752,108940.0,108930.0,1.54804543]
[1748397104434,0.00613752,108940.0,108930.0,1.40889494]
[1748397104435,0.18963422,108940.0,108930.0,1.40889494]
[1748397104829,0.18963422,108940.0,108930.0,1.46312372]
[1748397105133,0.18963422,108940.0,108930.0,1.35525699]
[1748397106134,0.00613752,108940.0,108930.0,1.35525699]
[1748397106523,0.18963422,108940.0,108930.0,1.35525699]
[1748397107230,0.18963422,108940.0,108930.0,1.36422645]
[1748397108339,0.18963422,108940.0,108930.0,1.78614645]
[1748397108538,0.22123422,108940.0,108930.0,1.69435045]
[1748397109833,0.22571631,108940.0,108930.0,1.69435045]
[1748397113143,0.22571631,108940.0,108930.0,1.27243045]
[1748397113340,0.22571631,108940.0,108930.0,1.25419426]
[1748397113535,0.36428304,108940.0,108930.0,0.89351426]
[1748397113746,0.36428304,108940.0,108930.0,1.26120548]
[1748397113747,0.72508304,108940.0,108930.0,1.26120548]
[1748397113943,0.25641631,108940.0,108930.0,1.30173587]
[1748397114131,0.25641631,108940.0,108930.0,1.30185587]
[1748397115644,0.25641631,108940.0,108930.0,0.97185587]
[1748397115837,0.25641631,108940.0,108930.0,1.10185587]
[1748397121449,0.25641631,108940.0,108930.0,1.06120548]
[1748397121647,0.25641631,108940.0,108930.0,1.10187621]
[1748397122254,0.25641631,108940.0,108930.0,0.91836261]
[1748397122445,0.25641631,108940.0,108930.0,1.06120548]
[1748397124045,0.25641631,108940.0,108930.0,0.63928548]
[1748397124251,0.25641631,108940.0,108930.0,1.03086548]
[1748397124451,0.25641631,108940.0,108930.0,1.03074548]
[1748397124652,0.25641631,108940.0,108930.0,0.60898548]
[1748397124855,0.25641631,108940.0,108930.0,1.03074548]
[1748397125151,0.25641631,108940.0,108930.0,1.03086548]
[1748397125852,0.61721631,108940.0,108930.0,1.03086548]
[1748397126553,0.61721631,108940.0,108930.0,0.60898548]
[1748397126743,0.61721631,108940.0,108930.0,1.03086548]
[1748397126940,0.72508304,108940.0,108930.0,0.36347188]
[1748397127144,0.72508304,108940.0,108930.0,0.27417698]
[1748397127351,1.10508304,108940.0,108930.0,0.17545698]
[1748397127545,0.80166152,108940.0,108930.0,0.12112]
[1748397127742,1.08166152,108940.0,108930.0,0.12112]
[1748397127948,1.08166152,108940.0,108930.0,0.121]
[1748397128149,1.08166152,108940.0,108930.0,0.12112]
[1748397128553,1.08166152,108940.0,108930.0,0.121]
[1748397128856,1.08166152,108940.0,108930.0,0.12112]
[1748397129750,0.86166152,108940.0,108930.0,0.12112]
[1748397132140,1.12166152,108940.0,108930.0,0.12112]
[1748397134348,0.91166152,108940.0,108930.0,0.3046336]
[1748397137260,0.91166152,108940.0,108930.0,0.12112]
[1748397137453,1.10166152,108940.0,108930.0,0.12112]
[1748397138160,0.92166152,108940.0,108930.0,0.12112]
[1748397138460,1.10166152,108940.0,108930.0,0.12112]
[1748397138862,1.10166152,108940.0,108930.0,0.121]
[1748397139055,1.10166152,108940.0,108930.0,0.12112]
[1748397139454,1.14456114,108940.0,108930.0,0.12112]
[1748397139654,1.44282387,108940.0,108930.0,0.12112]
[1748397139855,1.44282387,108940.0,108930.0,0.121]
[1748397140154,1.44282387,108940.0,108930.0,0.12112]
[1748397140661,1.44282387,108940.0,108920.0,0.00137704]
[1748397140662,0.1835136,108930.0,108920.0,0.00137704]
[1748397140852,1.72464516,108930.0,108920.0,0.06137704]
[1748397141051,1.68806668,108930.0,108920.0,0.06149704]
[1748397142666,1.69006668,108930.0,108920.0,0.06149704]
[1748397143463,1.69006051,108930.0,108920.0,0.06149704]
[1748397144856,1.58219378,108930.0,108920.0,0.06149704]
[1748397145061,1.33930033,108930.0,108920.0,0.09159704]
[1748397145760,1.52930033,108930.0,108920.0,0.09159704]
[1748397146951,1.35930033,108930.0,108920.0,0.09159704]
[1748397147157,1.39574412,108930.0,108920.0,0.09159704]
[1748397147568,1.35930033,108930.0,108920.0,0.09159704]
[1748397147768,1.39579208,108930.0,108920.0,0.09159704]
[1748397148856,0.97387208,108930.0,108920.0,0.09159704]
[1748397150559,1.33467208,108930.0,108920.0,0.09159704]
[1748397151969,1.29818033,108930.0,108920.0,0.09159704]
[1748397152163,1.22680895,108930.0,108920.0,0.09159704]
[1748397152354,1.33467568,108930.0,108920.0,0.27512744]
[1748397152861,1.33467568,108930.0,108920.0,0.30822744]
[1748397153060,1.33467568,108930.0,108920.0,0.12469704]
[1748397155558,0.61307568,108930.0,108920.0,0.12469704]
[1748397155760,0.97387568,108930.0,108920.0,0.30822744]
[1748397155955,0.94317568,108930.0,108920.0,0.30822744]
[1748397156355,0.94317744,108930.0,108920.0,0.30822744]
[1748397160476,0.94317744,108930.0,108920.0,0.12469704]
[1748397160674,1.05106568,108930.0,108920.0,0.09159704]
[1748397160862,0.1835304,108920.0,108910.0,0.04084262]
[1748397161068,1.16771575,108920.0,108910.0,0.08084262]
[1748397161373,1.16771575,108920.0,108910.0,0.04013752]
[1748397161962,1.21065064,108920.0,108910.0,0.04125752]
[1748397162363,1.21065064,108920.0,108910.0,0.04113752]
[1748397162568,1.21065064,108920.0,108910.0,0.04125752]
[1748397162976,1.21165064,108920.0,108910.0,0.04125752]
[1748397165071,1.21211354,108920.0,108910.0,0.04125752]
[1748397165778,1.57291354,108920.0,108910.0,0.04125752]
[1748397166296,1.99487354,108920.0,108910.0,0.04125752]
[1748397166976,1.99489481,108920.0,108910.0,0.04125752]
[1748397168278,1.27329481,108920.0,108910.0,0.04125752]
[1748397168472,1.99489481,108920.0,108910.0,0.04125752]
[1748397169065,2.05202065,108920.0,108910.0,0.04125752]
[1748397169272,1.97208297,108920.0,108910.0,0.04113752]
[1748397169580,2.05205344,108920.0,108910.0,0.04113752]
[1748397169877,2.05205344,108920.0,108910.0,0.04125752]
[1748397170080,2.05205344,108920.0,108910.0,0.07155752]
[1748397171674,2.05205344,108920.0,108910.0,0.04125752]
[1748397173576,2.15065344,108920.0,108910.0,0.04125752]
[1748397173775,2.150674,108920.0,108910.0,0.04125752]
[1748397174180,2.09354816,108920.0,108910.0,0.04125752]
[1748397175984,1.57298816,108920.0,108910.0,0.22480482]
[1748397176187,1.57298816,108920.0,108910.0,0.28630482]
[1748397176386,1.57298816,108920.0,108910.0,0.13365752]
[1748397177082,1.57298816,108920.0,108910.0,0.10275752]
[1748397179388,1.99494816,108920.0,108910.0,0.10275752]
[1748397182384,1.9948901,108920.0,108910.0,0.10275752]
[1748397185088,1.5729301,108920.0,108910.0,0.10275752]
[1748397186890,1.57295493,108920.0,108910.0,0.10275752]
[1748397187591,1.63008077,108920.0,108910.0,0.10275752]
[1748397190191,1.10951404,108920.0,108910.0,0.28630482]
[1748397190495,1.27025493,108920.0,108910.0,0.35700992]
[1748397190695,1.32738077,108920.0,108910.0,0.35700992]
[1748397192388,0.60578077,108920.0,108910.0,0.17346262]
[1748397192591,1.32738077,108920.0,108910.0,0.17346262]
[1748397193188,1.58738077,108920.0,108910.0,0.17346262]
[1748397193898,1.58738077,108920.0,108910.0,0.14346262]
[1748397195289,1.58738077,108920.0,108910.0,0.14246262]
[1748397195582,1.58838077,108920.0,108910.0,0.14246262]
[1748397197800,1.58838077,108920.0,108910.0,0.32600992]
[1748397197996,1.17045493,108920.0,108910.0,0.35870992]
[1748397199692,1.22759459,108920.0,108910.0,0.35858992]
[1748397200305,1.17046875,108920.0,108910.0,0.35858992]
[1748397200602,1.22759459,108920.0,108910.0,0.35858992]
[1748397201301,1.17046875,108920.0,108910.0,0.35858992]
[1748397201502,1.22759459,108920.0,108910.0,0.35858992]
[1748397202101,1.22759459,108920.0,108910.0,0.32588992]
[1748397204006,1.22757626,108920.0,108910.0,0.32588992]
[1748397205506,0.86677626,108920.0,108910.0,0.32588992]
[1748397205805,1.22757626,108920.0,108910.0,0.32588992]
[1748397207102,1.22757626,108920.0,108910.0,0.14234262]
[1748397209108,1.11970953,108920.0,108910.0,0.32588992]
[1748397209311,1.11757626,108920.0,108910.0,0.32588992]
[1748397209607,1.11757626,108920.0,108910.0,0.14234262]
[1748397212907,1.14837626,108920.0,108910.0,0.14234262]
[1748397214003,1.14840138,108920.0,108910.0,0.14234262]
[1748397217105,1.14828344,108920.0,108910.0,0.14234262]
[1748397221616,1.14823851,108920.0,108910.0,0.14234262]
[1748397222704,1.14823851,108920.0,108910.0,0.32588992]
[1748397222905,0.88031267,108920.0,108910.0,0.46448177]
[1748397224012,0.88031267,108920.0,108910.0,0.59472562]
[1748397224818,0.88031267,108920.0,108910.0,0.69472562]
[1748397224819,0.86031267,108920.0,108910.0,0.69472562]
[1748397225116,0.86031267,108920.0,108910.0,0.58683377]
[1748397226405,0.86031267,108920.0,108910.0,0.58682587]
[1748397227014,0.78052225,108920.0,108910.0,0.53844898]
[1748397227317,0.86028469,108920.0,108910.0,0.58682587]
[1748397228423,0.86028469,108920.0,108910.0,0.42759842]
[1748397228612,0.89058469,108920.0,108910.0,0.42759842]
[1748397228921,0.89058469,108920.0,108910.0,0.37922153]
[1748397229912,0.89058469,108920.0,108910.0,0.48711338]
[1748397231219,0.89058469,108920.0,108910.0,0.40525432]
[1748397231620,0.52978469,108920.0,108910.0,0.47735432]
[1748397231810,0.89058469,108920.0,108910.0,0.47735432]
[1748397232010,0.52978469,108920.0,108910.0,0.47735432]
[1748397232621,0.89058469,108920.0,108910.0,0.47735432]
[1748397232923,1.27847654,108920.0,108910.0,0.15]
[1748397233130,1.27847654,108920.0,108910.0,0.14]
[1748397233329,1.33560238,108920.0,108910.0,0.14]
[1748397233835,1.27847654,108920.0,108910.0,0.14]
[1748397234024,0.98058908,108920.0,108910.0,0.14012]
[1748397234522,0.98058439,108920.0,108910.0,0.14012]
[1748397234724,1.03808133,108920.0,108910.0,0.14012]
[1748397236832,0.98095549,108920.0,108910.0,0.14012]
[1748397238330,0.83095549,108920.0,108910.0,0.14012]
[1748397238928,0.83095651,108920.0,108910.0,0.14012]
[1748397239930,0.72306027,108920.0,108910.0,0.3236672]
[1748397240131,0.72306027,108920.0,108910.0,0.3336672]
[1748397240322,0.72306027,108920.0,108910.0,0.4247672]
[1748397242231,0.83095651,108920.0,108910.0,0.4247672]
[1748397242434,0.83095651,108920.0,108910.0,0.3948672]
[1748397244632,0.72306027,108920.0,108910.0,0.3948672]
[1748397244825,0.83095651,108920.0,108910.0,0.3948672]
[1748397245021,0.07222041,108920.0,108910.0,1.45307195]
[1748397245237,0.07222041,108920.0,108910.0,1.53720073]
[1748397245537,0.0351,108920.0,108910.0,1.53737473]
[1748397245834,0.0351,108920.0,108910.0,1.60536747]
[1748397246033,0.0351,108920.0,108910.0,1.53737473]
[1748397246232,0.0351,108920.0,108910.0,1.53837473]
[1748397246533,0.2166304,108920.0,108910.0,1.53837473]
[1748397246734,0.2166304,108920.0,108910.0,1.21047849]
[1748397246934,0.2477304,108920.0,108910.0,1.21047849]
[1748397247634,0.2477304,108920.0,108910.0,1.08027174]
[1748397250530,0.2786304,108920.0,108910.0,1.08027174]
[1748397250936,0.0951,108920.0,108910.0,1.18816798]
[1748397251139,0.0642,108920.0,108910.0,1.18816798]
[1748397251336,0.0642,108920.0,108910.0,1.07946798]
[1748397251534,0.0642,108920.0,108910.0,1.42946798]
[1748397252237,0.2477304,108920.0,108910.0,1.74601174]
[1748397252443,0.0642,108920.0,108910.0,1.74601174]
[1748397252938,0.2477304,108920.0,108910.0,1.38521174]
[1748397253144,0.2780304,108920.0,108910.0,1.38521174]
[1748397253334,0.2780304,108920.0,108910.0,1.38509174]
[1748397253641,0.2780304,108920.0,108910.0,1.38521174]
[1748397254832,0.2780304,108920.0,108910.0,1.34391174]
[1748397257037,0.0945,108920.0,108910.0,1.81260798]
[1748397257237,0.0642,108920.0,108910.0,1.81260798]
[1748397257432,0.0642,108920.0,108910.0,1.70471174]
[1748397257634,0.2477304,108920.0,108910.0,1.9445987]
[1748397257937,0.2791304,108920.0,108910.0,1.83658246]
[1748397258244,0.2791304,108920.0,108910.0,1.83670246]
[1748397258541,0.38702664,108920.0,108910.0,1.74576246]
[1748397258734,0.38702664,108920.0,108910.0,1.03496246]
[1748397258933,1.06230873,108920.0,108910.0,0.23620201]
[1748397259149,1.06230873,108920.0,108910.0,0.20908266]
[1748397259444,1.06230873,108920.0,108910.0,0.35173249]
[1748397259633,1.06230873,108920.0,108910.0,0.35185249]
[1748397260344,1.06230873,108920.0,108910.0,0.16830519]
[1748397263437,1.42310873,108920.0,108910.0,0.16830519]
[1748397263638,1.42310873,108920.0,108910.0,0.35185249]
[1748397264346,1.17310873,108920.0,108910.0,0.35185249]
[1748397265042,1.16862664,108920.0,108910.0,0.35185249]
[1748397265245,1.0607304,108920.0,108910.0,0.35185249]
[1748397265435,1.0607304,108920.0,108910.0,0.44765249]
[1748397265436,0.6399304,108920.0,108910.0,0.44765249]
[1748397265835,0.6399304,108920.0,108910.0,0.48842996]
[1748397266548,0.2791304,108920.0,108910.0,0.46124477]
[1748397267744,0.6399304,108920.0,108910.0,0.46124477]
[1748397268847,0.6399304,108920.0,108910.0,0.60124477]
[1748397270253,0.64441249,108920.0,108910.0,0.60124477]
[1748397270549,0.64441249,108920.0,108910.0,0.44333898]
[1748397270849,0.88230873,108920.0,108910.0,0.05077747]
[1748397271051,1.06230873,108920.0,108910.0,0.05089747]
[1748397271443,1.06230873,108920.0,108910.0,0.07796775]
[1748397271641,1.06230873,108920.0,108910.0,0.07808775]
[1748397272034,0.74441249,108920.0,108910.0,0.26163505]
[1748397272239,0.85230873,108920.0,108910.0,0.23444477]
[1748397273251,0.84782664,108920.0,108910.0,0.23444477]
[1748397284549,0.84782664,108920.0,108910.0,0.05089747]
[1748397284749,0.74782664,108920.0,108910.0,0.05089747]
[1748397284953,1.11782664,108920.0,108910.0,0.05089747]
[1748397285252,1.11782664,108920.0,108910.0,0.23444477]
[1748397286054,1.11782664,108920.0,108910.0,0.23432477]
[1748397286369,0.82782664,108920.0,108910.0,0.23444477]
[1748397288050,0.74782664,108920.0,108910.0,0.23444477]
[1748397288251,0.38702664,108920.0,108910.0,0.32714477]
[1748397291552,0.2791304,108920.0,108910.0,0.2863673]
[1748397293257,0.2791304,108920.0,108910.0,0.2564673]
[1748397294053,0.38702664,108920.0,108910.0,0.2564673]
[1748397296661,0.38702664,108920.0,108910.0,0.2863673]
[1748397296857,0.38702664,108920.0,108910.0,0.34079184]
[1748397299156,0.38702664,108920.0,108910.0,0.36079184]
[1748397302673,0.38702664,108920.0,108910.0,0.3063673]
[1748397304665,1.10782664,108920.0,108910.0,0.03012]
[1748397304972,1.10782664,108920.0,108900.0,2e-08]
[1748397304973,0.1835472,108910.0,108900.0,2e-08]
[1748397305159,1.22548856,108910.0,108900.0,0.10000002]
[1748397305468,1.16836272,108910.0,108900.0,0.07174001]
[1748397305657,1.26327861,108910.0,108900.0,1e-07]
[1748397306060,0.183581,108890.0,108880.0,0.08616134]
[1748397306262,1.42980028,108890.0,108880.0,0.1717368]
[1748397306461,1.46100028,108890.0,108880.0,0.1717368]
[1748397306665,1.46100028,108890.0,108880.0,0.1718568]
[1748397306867,1.46100028,108890.0,108880.0,0.1717368]
[1748397307066,1.46100028,108890.0,108880.0,0.1718568]
[1748397308064,1.46100028,108890.0,108880.0,0.1717368]
[1748397308262,1.46170306,108890.0,108880.0,0.1717368]
[1748397308463,1.46170306,108890.0,108880.0,0.1718568]
[1748397308670,1.46170306,108890.0,108880.0,0.1738568]
[1748397308883,1.49260306,108890.0,108880.0,0.1758568]
[1748397309774,1.49260306,108890.0,108880.0,0.1459568]
[1748397311664,1.49260306,108890.0,108880.0,0.1782568]
[1748397311665,1.45517724,108890.0,108880.0,0.1782568]
[1748397312672,1.347281,108890.0,108880.0,0.1762568]
[1748397312872,1.45517724,108890.0,108880.0,0.1752568]
[1748397315171,1.347281,108890.0,108880.0,0.1752568]
[1748397315369,1.45517724,108890.0,108880.0,0.1752568]
[1748397318076,1.17517724,108890.0,108880.0,0.1752568]
[1748397324881,1.21242065,108890.0,108880.0,0.1752568]
[1748397325974,1.42242065,108890.0,108880.0,0.1752568]
[1748397326280,1.42242506,108890.0,108880.0,0.1752568]
[1748397328185,1.42342506,108890.0,108880.0,0.1742568]
[1748397329084,1.42542506,108890.0,108880.0,0.1742568]
[1748397330485,1.42545816,108890.0,108880.0,0.1742568]
[1748397332982,1.45595816,108890.0,108880.0,0.1742568]
[1748397334691,1.45595816,108890.0,108880.0,0.21495044]
[1748397334692,1.49884205,108890.0,108880.0,0.21495044]
[1748397334987,0.77724205,108890.0,108880.0,0.21495044]
[1748397335172,1.49884205,108890.0,108880.0,0.21495044]
[1748397337293,1.49884205,108890.0,108880.0,0.21483044]
[1748397339289,1.49913246,108890.0,108880.0,0.21483044]
[1748397340591,1.49913246,108890.0,108880.0,0.18253044]
[1748397340793,1.49913246,108890.0,108880.0,0.18265044]
[1748397341177,1.50361455,108890.0,108880.0,0.18265044]
[1748397343394,1.49913246,108890.0,108880.0,0.18253044]
[1748397343592,1.49912871,108890.0,108880.0,0.18265044]
[1748397343786,1.55642124,108890.0,108880.0,0.18265044]
[1748397344095,1.49912871,108890.0,108880.0,0.21355044]
[1748397345594,1.49912671,108890.0,108880.0,0.21355044]
[1748397346096,1.49919028,108890.0,108880.0,0.21355044]
[1748397347989,1.49918911,108890.0,108880.0,0.21355044]
[1748397354499,1.5036712,108890.0,108880.0,0.21355044]
[1748397355194,1.5036712,108890.0,108880.0,0.18265044]
[1748397355404,1.5036712,108890.0,108880.0,0.18253044]
[1748397355405,1.62140764,108890.0,108880.0,0.18253044]
[1748397355585,1.65005298,108890.0,108880.0,0.1418368]
[1748397356199,1.65005298,108890.0,108880.0,0.1419568]
[1748397356396,1.65453507,108890.0,108880.0,0.1418368]
[1748397356697,1.6545278,108890.0,108880.0,0.1419568]
[1748397359287,1.76248761,108890.0,108880.0,0.0065151]
[1748397359487,0.1835975,108880.0,108870.0,0.00013752]
[1748397359702,1.38850591,108880.0,108870.0,0.06013752]
[1748397359894,1.43149723,108880.0,108870.0,0.06013752]
[1748397360095,1.43149723,108880.0,108870.0,0.06025752]
[1748397360398,1.32353742,108880.0,108870.0,0.06025752]
[1748397360608,1.85433723,108880.0,108870.0,0.06025752]
[1748397360790,1.43149723,108880.0,108870.0,0.06013752]
[1748397360990,1.43051941,108880.0,108870.0,0.06013752]
[1748397361206,1.43051941,108880.0,108870.0,0.06025752]
[1748397362192,1.52979941,108880.0,108870.0,0.02854342]
[1748397362503,1.52978774,108880.0,108870.0,0.02942342]
[1748397362801,1.4868236,108880.0,108870.0,0.02942342]
[1748397363196,1.42182703,108880.0,108870.0,0.02954342]
[1748397363397,1.42382703,108880.0,108870.0,0.02854342]
[1748397363598,1.42682703,108880.0,108870.0,0.02954342]
[1748397363994,1.53478684,108880.0,108870.0,0.02954342]
[1748397364606,1.53478684,108880.0,108870.0,0.03402551]
[1748397366797,1.84970703,108880.0,108870.0,0.03402551]
[1748397367000,1.79238527,108880.0,108870.0,0.06442551]
[1748397367504,1.90034508,108880.0,108870.0,0.06442551]
[1748397367704,1.90034508,108880.0,108870.0,0.03402551]
[1748397368006,1.95766684,108880.0,108870.0,0.03402551]
[1748397368400,1.95766684,108880.0,108870.0,0.03390551]
[1748397368596,1.95766684,108880.0,108870.0,0.03402551]
[1748397369409,1.9576079,108880.0,108870.0,0.03402551]
[1748397369996,1.74172066,108880.0,108870.0,0.03402551]
[1748397370193,1.63372847,108880.0,108870.0,0.03402551]
[1748397370406,1.74172066,108880.0,108870.0,0.03402551]
[1748397373611,1.74172025,108880.0,108870.0,0.03402551]
[1748397374212,1.63372806,108880.0,108870.0,0.03402551]
[1748397374413,1.74172025,108880.0,108870.0,0.03402551]
[1748397377811,1.66237145,108880.0,108870.0,0.06532551]
[1748397378014,1.74175,108880.0,108870.0,0.06532551]
[1748397380499,1.74175,108880.0,108870.0,0.03402551]
[1748397381007,1.74175,108880.0,108870.0,0.03390551]
[1748397381310,1.74175,108880.0,108870.0,0.03402551]
[1748397381716,1.69879573,108880.0,108870.0,0.03402551]
[1748397382106,1.74177635,108880.0,108870.0,0.03402551]
[1748397382307,1.6987137,108880.0,108870.0,0.06452551]
[1748397382704,1.78465157,108880.0,108870.0,0.06452551]
[1748397385607,1.72732981,108880.0,108870.0,0.06452551]
[1748397386719,1.72739215,108880.0,108870.0,0.06452551]
[1748397388114,1.72739215,108880.0,108870.0,0.03402551]
[1748397389120,1.72739215,108880.0,108870.0,0.06682551]
[1748397390114,1.94338214,108880.0,108870.0,0.06682551]
[1748397391012,1.94338438,108880.0,108870.0,0.06682551]
[1748397392812,1.94338438,108880.0,108870.0,5.961e-05]
[1748397393126,0.183631,108860.0,108850.0,0.00275596]
[1748397393423,1.86890989,108860.0,108850.0,0.02555461]
[1748397393720,1.86890989,108860.0,108850.0,0.02583217]
[1748397393721,2.06394771,108860.0,108850.0,0.02583217]
[1748397393919,2.38792989,108860.0,108850.0,0.02583217]
[1748397394117,2.38792989,108860.0,108850.0,0.02568545]
[1748397394428,2.30185996,108860.0,108850.0,0.02568608]
[1748397394611,2.30185996,108860.0,108850.0,0.02568613]
[1748397394812,2.30285996,108860.0,108850.0,0.02568613]
[1748397395323,2.30283375,108860.0,108850.0,0.0256824]
[1748397395510,2.24084193,108860.0,108850.0,0.01387596]
[1748397396316,2.24084193,108860.0,108850.0,0.04517596]
[1748397398018,0.1836817,108830.0,108820.0,0.05626235]
[1748397398217,0.82884471,108830.0,108820.0,0.19303781]
[1748397398619,0.82884471,108830.0,108820.0,0.19315781]
[1748397399120,0.82984471,108830.0,108820.0,0.19315781]
[1748397399327,0.86204471,108830.0,108820.0,0.22635781]
[1748397399522,0.86238425,108830.0,108820.0,0.22635781]
[1748397399723,1.06268425,108830.0,108820.0,0.22635781]
[1748397399921,1.10414803,108830.0,108820.0,0.22635781]
[1748397400121,1.10414803,108830.0,108820.0,0.23035781]
[1748397400921,1.11775166,108830.0,108820.0,0.23035781]
[1748397401221,1.11775166,108830.0,108820.0,0.24312688]
[1748397401815,1.11775166,108830.0,108820.0,0.24316352]
[1748397402016,1.11775166,108830.0,108820.0,0.23035781]
[1748397402017,1.11782328,108830.0,108820.0,0.23035781]
[1748397402217,1.11782328,108830.0,108820.0,0.2431635]
[1748397402822,1.11782328,108830.0,108820.0,0.07217329]
[1748397403327,1.11782328,108830.0,108820.0,0.07205329]
[1748397403517,1.11782328,108830.0,108820.0,0.0593676]
[1748397403921,1.11782328,108830.0,108820.0,0.07216584]
[1748397404424,1.11782328,108830.0,108820.0,0.07216254]
[1748397405222,1.11782328,108830.0,108820.0,0.07216051]
[1748397405424,1.11782328,108830.0,108820.0,0.07204054]
[1748397405625,1.11782328,108830.0,108820.0,0.07216054]